[Event "November 21 Early 2023"]
[Site "https://www.chess.com"]
[Date "2023.11.21"]
[Round "5"]
[White "Kubatko, Ivan"]
[Black "IsaqueGoncalvesSanto"]
[Result "1-0"]
[Board "159"]
[TimeControl "180+1"]
[WhiteFideId "24111473"]
[WhiteElo "2285"]
[BlackElo "1931"]
[WhiteTeam "RUS"]
[WhiteClock "0:00:01"]
[BlackClock "0:00:00"]

1. e4 {[%clk 0:03:00]}  e6 {[%clk 0:02:56]} 2. d4 {[%clk 0:03:00]}  d5 {[%clk 0:02:57]} 3. exd5 {[%clk 0:03:01]}  exd5 {[%clk 0:02:56]} 4. Nf3 {[%clk 0:03:02]}  Bd6 {[%clk 0:02:56]} 5. c4 {[%clk 0:03:02]}  c6 {[%clk 0:02:55]} 6. Bd3 {[%clk 0:03:01]}  Ne7 {[%clk 0:02:52]} 7. O-O {[%clk 0:03:00]}  O-O {[%clk 0:02:52]} 8. Nc3 {[%clk 0:02:55]}  Be6 {[%clk 0:02:50]} 9. c5 {[%clk 0:02:38]}  Bc7 {[%clk 0:02:48]} 10. b4 {[%clk 0:02:26]}  Bg4 {[%clk 0:02:31]} 11. Bxh7+ {[%clk 0:02:24]}  Kh8 {[%clk 0:02:12]} 12. Bd3 {[%clk 0:02:22]}  g6 {[%clk 0:02:10]} 13. h3 {[%clk 0:02:18]}  Bf5 {[%clk 0:01:56]} 14. Re1 {[%clk 0:02:00]}  Nd7 {[%clk 0:01:51]} 15. g4 {[%clk 0:01:24]}  Bxd3 {[%clk 0:01:44]} 16. Qxd3 {[%clk 0:01:25]}  Nf6 {[%clk 0:01:43]} 17. Bg5 {[%clk 0:01:21]}  Kg7 {[%clk 0:01:31]} 18. Re2 {[%clk 0:01:16]}  Neg8 {[%clk 0:01:27]} 19. Rae1 {[%clk 0:01:13]}  Qd7 {[%clk 0:01:22]} 20. Ne5 {[%clk 0:01:12]}  Bxe5 {[%clk 0:01:02]} 21. dxe5 {[%clk 0:01:10]}  Nh7 {[%clk 0:00:50]} 22. Bd2 {[%clk 0:00:45]}  Rae8 {[%clk 0:00:44]} 23. f4 {[%clk 0:00:45]}  Qe7 {[%clk 0:00:42]} 24. f5 {[%clk 0:00:37]}  Qh4 {[%clk 0:00:39]} 25. Kg2 {[%clk 0:00:26]}  gxf5 {[%clk 0:00:24]} 26. gxf5 {[%clk 0:00:25]}  Nh6 {[%clk 0:00:21]} 27. Bxh6+ {[%clk 0:00:21]}  Qxh6 {[%clk 0:00:19]} 28. Kh1 {[%clk 0:00:19]}  Kh8 {[%clk 0:00:18]} 29. e6 {[%clk 0:00:14]}  fxe6 {[%clk 0:00:18]} 30. fxe6 {[%clk 0:00:14]}  Rf6 {[%clk 0:00:15]} 31. e7 {[%clk 0:00:12]}  Rf7 {[%clk 0:00:14]} 32. Re6 {[%clk 0:00:11]}  Qg7 {[%clk 0:00:11]} 33. Rg1 {[%clk 0:00:07]}  Ng5 {[%clk 0:00:07]} 34. Qe3 {[%clk 0:00:06]}  Rf5 {[%clk 0:00:02]} 35. h4 {[%clk 0:00:04]}  Qh7 {[%clk 0:00:02]} 36. Qg3 {[%clk 0:00:02]}  Nf3 {[%clk 0:00:01]} 37. Rf1 {[%clk 0:00:02]}  Nxh4 {[%clk 0:00:01]} 38. Rxf5 {[%clk 0:00:01]}  Nxf5+ {[%clk 0:00:00]} 39. Qh2 {[%clk 0:00:01]} 1-0

[Event "November 21 Early 2023"]
[Site "https://www.chess.com"]
[Date "2023.11.21"]
[Round "5"]
[White "vinclat"]
[Black "NelsonLinda"]
[Result "1/2-1/2"]
[Board "162"]
[TimeControl "180+1"]
[WhiteElo "2368"]
[BlackElo "2558"]
[WhiteClock "0:00:06"]
[BlackClock "0:00:10"]

1. e4 {[%clk 0:02:59]}  g6 {[%clk 0:02:57]} 2. d4 {[%clk 0:02:58]}  Nf6 {[%clk 0:02:57]} 3. Nc3 {[%clk 0:02:56]}  d5 {[%clk 0:02:57]} 4. e5 {[%clk 0:02:50]}  Ne4 {[%clk 0:02:57]} 5. Bd3 {[%clk 0:02:49]}  Nxc3 {[%clk 0:02:57]} 6. bxc3 {[%clk 0:02:50]}  c5 {[%clk 0:02:57]} 7. Nf3 {[%clk 0:02:26]}  Bg4 {[%clk 0:02:53]} 8. h3 {[%clk 0:02:24]}  Bxf3 {[%clk 0:02:51]} 9. Qxf3 {[%clk 0:02:25]}  e6 {[%clk 0:02:43]} 10. O-O {[%clk 0:02:23]}  c4 {[%clk 0:02:40]} 11. Be2 {[%clk 0:02:21]}  Nc6 {[%clk 0:02:41]} 12. g3 {[%clk 0:02:18]}  h5 {[%clk 0:02:39]} 13. h4 {[%clk 0:02:13]}  Be7 {[%clk 0:02:37]} 14. Kg2 {[%clk 0:02:12]}  Qd7 {[%clk 0:02:22]} 15. a4 {[%clk 0:01:56]}  Na5 {[%clk 0:02:15]} 16. Bf4 {[%clk 0:01:50]}  O-O-O {[%clk 0:02:13]} 17. Rh1 {[%clk 0:01:24]}  Rdg8 {[%clk 0:02:08]} 18. Bg5 {[%clk 0:01:25]}  Rh7 {[%clk 0:02:01]} 19. Qe3 {[%clk 0:01:01]}  Qd8 {[%clk 0:01:59]} 20. Bxe7 {[%clk 0:00:58]}  Qxe7 {[%clk 0:02:00]} 21. f4 {[%clk 0:00:58]}  b6 {[%clk 0:01:38]} 22. Bf3 {[%clk 0:00:55]}  Rd8 {[%clk 0:01:37]} 23. Rhb1 {[%clk 0:00:53]}  Rd7 {[%clk 0:01:37]} 24. Rb4 {[%clk 0:00:51]}  Rb7 {[%clk 0:01:37]} 25. Qc1 {[%clk 0:00:47]}  Rh8 {[%clk 0:01:37]} 26. Qb2 {[%clk 0:00:47]}  Rd8 {[%clk 0:01:36]} 27. Qa2 {[%clk 0:00:44]}  Rdd7 {[%clk 0:01:34]} 28. Rab1 {[%clk 0:00:44]}  Rdc7 {[%clk 0:01:33]} 29. Rb5 {[%clk 0:00:44]}  Kd8 {[%clk 0:01:33]} 30. Qb2 {[%clk 0:00:42]}  Ke8 {[%clk 0:01:33]} 31. Rh1 {[%clk 0:00:38]}  Kd8 {[%clk 0:01:31]} 32. Qa2 {[%clk 0:00:37]}  Kc8 {[%clk 0:01:31]} 33. Qb2 {[%clk 0:00:36]}  Kb8 {[%clk 0:01:32]} 34. Qa2 {[%clk 0:00:36]}  Rd7 {[%clk 0:01:14]} 35. Rbb1 {[%clk 0:00:36]}  Rd8 {[%clk 0:01:13]} 36. Kf2 {[%clk 0:00:35]}  Rf8 {[%clk 0:01:12]} 37. Rbe1 {[%clk 0:00:30]}  Qd7 {[%clk 0:01:11]} 38. Rb1 {[%clk 0:00:29]}  Qc6 {[%clk 0:01:07]} 39. Qa3 {[%clk 0:00:25]}  Re8 {[%clk 0:01:03]} 40. Rb5 {[%clk 0:00:24]}  Ka8 {[%clk 0:01:02]} 41. Rhb1 {[%clk 0:00:23]}  Reb8 {[%clk 0:01:02]} 42. R5b4 {[%clk 0:00:21]}  Qd7 {[%clk 0:01:02]} 43. Rb5 {[%clk 0:00:21]}  Qe7 {[%clk 0:01:00]} 44. Qxe7 {[%clk 0:00:20]}  Rxe7 {[%clk 0:01:01]} 45. R5b4 {[%clk 0:00:20]}  Rf8 {[%clk 0:00:58]} 46. Rb5 {[%clk 0:00:19]}  Nc6 {[%clk 0:00:58]} 47. R5b2 {[%clk 0:00:16]}  Kb7 {[%clk 0:00:58]} 48. Re1 {[%clk 0:00:16]}  Kc7 {[%clk 0:00:58]} 49. Rb5 {[%clk 0:00:15]}  Rb8 {[%clk 0:00:58]} 50. Rbb1 {[%clk 0:00:16]}  a6 {[%clk 0:00:55]} 51. g4 {[%clk 0:00:16]}  hxg4 {[%clk 0:00:54]} 52. Bxg4 {[%clk 0:00:17]}  Rh8 {[%clk 0:00:54]} 53. Rh1 {[%clk 0:00:17]}  Ree8 {[%clk 0:00:49]} 54. h5 {[%clk 0:00:17]}  Reg8 {[%clk 0:00:40]} 55. hxg6 {[%clk 0:00:16]}  Rxh1 {[%clk 0:00:40]} 56. Rxh1 {[%clk 0:00:15]}  Rxg6 {[%clk 0:00:41]} 57. Bf3 {[%clk 0:00:16]}  Rg7 {[%clk 0:00:41]} 58. Rh6 {[%clk 0:00:16]}  Ne7 {[%clk 0:00:41]} 59. Rf6 {[%clk 0:00:15]}  Nc6 {[%clk 0:00:32]} 60. Bh5 {[%clk 0:00:15]}  Nd8 {[%clk 0:00:32]} 61. Rh6 {[%clk 0:00:15]}  Kd7 {[%clk 0:00:24]} 62. f5 {[%clk 0:00:15]}  b5 {[%clk 0:00:18]} 63. f6 {[%clk 0:00:15]}  Rg8 {[%clk 0:00:18]} 64. axb5 {[%clk 0:00:16]}  axb5 {[%clk 0:00:18]} 65. Rh7 {[%clk 0:00:17]}  Ke8 {[%clk 0:00:14]} 66. Rg7 {[%clk 0:00:17]}  Rh8 {[%clk 0:00:14]} 67. Bf3 {[%clk 0:00:14]}  Rh2+ {[%clk 0:00:14]} 68. Bg2 {[%clk 0:00:14]}  Rh4 {[%clk 0:00:14]} 69. Kg3 {[%clk 0:00:14]}  Rh8 {[%clk 0:00:09]} 70. Bh3 {[%clk 0:00:15]}  Kf8 {[%clk 0:00:08]} 71. Bg4 {[%clk 0:00:10]}  Rh1 {[%clk 0:00:06]} 72. Bh3 {[%clk 0:00:09]}  Rg1+ {[%clk 0:00:03]} 73. Bg2 {[%clk 0:00:09]}  Rc1 {[%clk 0:00:04]} 74. Rh7 {[%clk 0:00:09]}  Ke8 {[%clk 0:00:05]} 75. Rh8+ {[%clk 0:00:10]}  Kd7 {[%clk 0:00:05]} 76. Rf8 {[%clk 0:00:07]}  Rxc2 {[%clk 0:00:06]} 77. Bf3 {[%clk 0:00:07]}  Rxc3 {[%clk 0:00:06]} 78. Kf4 {[%clk 0:00:07]}  b4 {[%clk 0:00:07]} 79. Bh5 {[%clk 0:00:07]}  b3 {[%clk 0:00:07]} 80. Bxf7 {[%clk 0:00:07]}  b2 {[%clk 0:00:08]} 81. Be8+ {[%clk 0:00:08]}  Kc7 {[%clk 0:00:08]} 82. Bg6 {[%clk 0:00:07]}  b1=Q {[%clk 0:00:08]} 83. Bxb1 {[%clk 0:00:07]}  Rc1 {[%clk 0:00:09]} 84. Bg6 {[%clk 0:00:07]}  c3 {[%clk 0:00:09]} 85. f7 {[%clk 0:00:07]}  c2 {[%clk 0:00:09]} 86. Bxc2 {[%clk 0:00:06]}  Rxc2 {[%clk 0:00:09]} 87. Rxd8 {[%clk 0:00:02]}  Rf2+ {[%clk 0:00:09]} 88. Ke3 {[%clk 0:00:03]}  Rxf7 {[%clk 0:00:09]} 89. Ra8 {[%clk 0:00:04]}  Kd7 {[%clk 0:00:05]} 90. Ra7+ {[%clk 0:00:04]}  Ke8 {[%clk 0:00:05]} 91. Rxf7 {[%clk 0:00:03]}  Kxf7 {[%clk 0:00:06]} 92. Kf3 {[%clk 0:00:04]}  Kg6 {[%clk 0:00:07]} 93. Kg4 {[%clk 0:00:04]}  Kh6 {[%clk 0:00:07]} 94. Kh4 {[%clk 0:00:04]}  Kg6 {[%clk 0:00:08]} 95. Kg4 {[%clk 0:00:05]}  Kh6 {[%clk 0:00:09]} 96. Kh4 {[%clk 0:00:06]}  Kg6 {[%clk 0:00:10]} 97. Kg4 {[%clk 0:00:06]} 1/2-1/2

[Event "November 21 Early 2023"]
[Site "https://www.chess.com"]
[Date "2023.11.21"]
[Round "5"]
[White "Mikhailova, Irina"]
[Black "Kovacsy, Barnabas"]
[Result "1/2-1/2"]
[Board "168"]
[TimeControl "180+1"]
[WhiteFideId "4109040"]
[BlackFideId "769290"]
[WhiteElo "2009"]
[BlackElo "2130"]
[WhiteTeam "RUS"]
[BlackTeam "HUN"]
[WhiteClock "0:00:32"]
[BlackClock "0:00:37"]

1. d4 {[%clk 0:03:00]}  Nf6 {[%clk 0:02:59]} 2. Nf3 {[%clk 0:03:00]}  g6 {[%clk 0:02:58]} 3. c4 {[%clk 0:03:01]}  Bg7 {[%clk 0:02:58]} 4. Nc3 {[%clk 0:03:01]}  d5 {[%clk 0:02:58]} 5. cxd5 {[%clk 0:03:01]}  Nxd5 {[%clk 0:02:58]} 6. e4 {[%clk 0:03:02]}  Nxc3 {[%clk 0:02:58]} 7. bxc3 {[%clk 0:03:02]}  c5 {[%clk 0:02:59]} 8. Bb5+ {[%clk 0:03:02]}  Nc6 {[%clk 0:02:51]} 9. Bxc6+ {[%clk 0:02:58]}  bxc6 {[%clk 0:02:51]} 10. O-O {[%clk 0:02:58]}  cxd4 {[%clk 0:02:49]} 11. cxd4 {[%clk 0:02:58]}  O-O {[%clk 0:02:50]} 12. Qc2 {[%clk 0:02:31]}  Bg4 {[%clk 0:02:47]} 13. Ne5 {[%clk 0:02:30]}  Bd7 {[%clk 0:02:36]} 14. Ba3 {[%clk 0:02:15]}  Rb8 {[%clk 0:02:30]} 15. Bc5 {[%clk 0:02:10]}  Qc7 {[%clk 0:02:17]} 16. Rad1 {[%clk 0:01:51]}  Bxe5 {[%clk 0:02:06]} 17. dxe5 {[%clk 0:01:49]}  Be6 {[%clk 0:02:07]} 18. f4 {[%clk 0:01:38]}  Bg4 {[%clk 0:01:48]} 19. Rb1 {[%clk 0:01:31]}  Rxb1 {[%clk 0:01:37]} 20. Rxb1 {[%clk 0:01:30]}  Rd8 {[%clk 0:01:33]} 21. h3 {[%clk 0:01:30]}  Bc8 {[%clk 0:01:26]} 22. Rd1 {[%clk 0:01:22]}  Rxd1+ {[%clk 0:01:22]} 23. Qxd1 {[%clk 0:01:22]}  Be6 {[%clk 0:01:13]} 24. a3 {[%clk 0:01:20]}  a5 {[%clk 0:01:01]} 25. Qd4 {[%clk 0:01:13]}  Qd7 {[%clk 0:00:54]} 26. Qxd7 {[%clk 0:01:10]}  Bxd7 {[%clk 0:00:55]} 27. Bxe7 {[%clk 0:01:10]}  h5 {[%clk 0:00:54]} 28. Kf2 {[%clk 0:01:09]}  a4 {[%clk 0:00:51]} 29. Ke3 {[%clk 0:01:09]}  Be6 {[%clk 0:00:50]} 30. Kd4 {[%clk 0:01:07]}  Bb3 {[%clk 0:00:50]} 31. f5 {[%clk 0:01:05]}  Bc2 {[%clk 0:00:42]} 32. f6 {[%clk 0:01:01]}  Bb3 {[%clk 0:00:41]} 33. g4 {[%clk 0:01:00]}  hxg4 {[%clk 0:00:40]} 34. hxg4 {[%clk 0:01:00]}  Be6 {[%clk 0:00:40]} 35. g5 {[%clk 0:01:00]}  Bb3 {[%clk 0:00:41]} 36. Kc5 {[%clk 0:01:00]}  Bc2 {[%clk 0:00:38]} 37. Kxc6 {[%clk 0:01:00]}  Bxe4+ {[%clk 0:00:38]} 38. Kd6 {[%clk 0:01:00]}  Bf5 {[%clk 0:00:37]} 39. Kc5 {[%clk 0:01:00]}  Be6 {[%clk 0:00:38]} 40. Kc6 {[%clk 0:01:00]}  Bb3 {[%clk 0:00:38]} 41. Kd7 {[%clk 0:01:00]}  Be6+ {[%clk 0:00:37]} 42. Kd8 {[%clk 0:00:59]}  Bb3 {[%clk 0:00:38]} 43. Kc7 {[%clk 0:00:58]}  Be6 {[%clk 0:00:39]} 44. Kb6 {[%clk 0:00:59]}  Bb3 {[%clk 0:00:39]} 45. Kb5 {[%clk 0:00:59]}  Bc2 {[%clk 0:00:35]} 46. Kb4 {[%clk 0:00:51]}  Bb3 {[%clk 0:00:34]} 47. Kc3 {[%clk 0:00:52]}  Be6 {[%clk 0:00:34]} 48. Kd4 {[%clk 0:00:51]}  Bb3 {[%clk 0:00:35]} 49. Kc5 {[%clk 0:00:49]}  Be6 {[%clk 0:00:35]} 50. Kb5 {[%clk 0:00:48]}  Bb3 {[%clk 0:00:36]} 51. Kb4 {[%clk 0:00:48]}  Bc2 {[%clk 0:00:35]} 52. Kc5 {[%clk 0:00:40]}  Bb3 {[%clk 0:00:35]} 53. Kd6 {[%clk 0:00:40]}  Be6 {[%clk 0:00:35]} 54. Kc7 {[%clk 0:00:38]}  Bb3 {[%clk 0:00:36]} 55. Bb4 {[%clk 0:00:32]}  Be6 {[%clk 0:00:34]} 56. Kd6 {[%clk 0:00:32]}  Bb3 {[%clk 0:00:34]} 57. Kc5 {[%clk 0:00:33]}  Be6 {[%clk 0:00:35]} 58. Kb5 {[%clk 0:00:33]}  Bb3 {[%clk 0:00:35]} 59. Ka5 {[%clk 0:00:34]}  Bc2 {[%clk 0:00:35]} 60. Bc5 {[%clk 0:00:34]}  Bb3 {[%clk 0:00:35]} 61. Kb4 {[%clk 0:00:34]}  Bc2 {[%clk 0:00:35]} 62. Kc3 {[%clk 0:00:34]}  Bb3 {[%clk 0:00:36]} 63. Kb4 {[%clk 0:00:35]}  Bc2 {[%clk 0:00:36]} 64. Ka5 {[%clk 0:00:35]}  Bb3 {[%clk 0:00:36]} 65. Bd6 {[%clk 0:00:34]}  Bc2 {[%clk 0:00:37]} 66. Kb4 {[%clk 0:00:34]}  Bb3 {[%clk 0:00:37]} 67. Kc3 {[%clk 0:00:35]}  Be6 {[%clk 0:00:36]} 68. Kd4 {[%clk 0:00:35]}  Bb3 {[%clk 0:00:37]} 69. Kc5 {[%clk 0:00:36]}  Be6 {[%clk 0:00:38]} 70. Kb4 {[%clk 0:00:32]}  Bb3 {[%clk 0:00:38]} 71. Kc5 {[%clk 0:00:32]}  Be6 {[%clk 0:00:37]} 1/2-1/2

[Event "November 21 Early 2023"]
[Site "https://www.chess.com"]
[Date "2023.11.21"]
[Round "5"]
[White "rikchessmx"]
[Black "Ismayil, Malak"]
[Result "1-0"]
[Board "171"]
[TimeControl "180+1"]
[BlackFideId "13412604"]
[WhiteElo "2319"]
[BlackElo "1898"]
[BlackTeam "AZE"]
[WhiteClock "0:00:16"]
[BlackClock "0:00:03"]

1. e4 {[%clk 0:03:00]}  e5 {[%clk 0:02:54]} 2. Nf3 {[%clk 0:03:00]}  Nc6 {[%clk 0:02:54]} 3. Bb5 {[%clk 0:03:00]}  a6 {[%clk 0:02:54]} 4. Ba4 {[%clk 0:03:00]}  Nf6 {[%clk 0:02:54]} 5. O-O {[%clk 0:03:00]}  b5 {[%clk 0:02:54]} 6. Bb3 {[%clk 0:03:00]}  Be7 {[%clk 0:02:55]} 7. Re1 {[%clk 0:02:59]}  O-O {[%clk 0:02:56]} 8. a4 {[%clk 0:02:59]}  b4 {[%clk 0:02:56]} 9. d3 {[%clk 0:02:59]}  d6 {[%clk 0:02:56]} 10. a5 {[%clk 0:02:58]}  h6 {[%clk 0:02:56]} 11. Nbd2 {[%clk 0:02:55]}  Re8 {[%clk 0:02:56]} 12. h3 {[%clk 0:02:52]}  Bf8 {[%clk 0:02:54]} 13. Nc4 {[%clk 0:02:49]}  g6 {[%clk 0:02:37]} 14. Bd2 {[%clk 0:02:45]}  Rb8 {[%clk 0:02:35]} 15. Ba4 {[%clk 0:02:26]}  Bd7 {[%clk 0:02:33]} 16. Qc1 {[%clk 0:02:21]}  Kh7 {[%clk 0:02:32]} 17. Nh2 {[%clk 0:02:15]}  Bg7 {[%clk 0:02:30]} 18. Rf1 {[%clk 0:02:14]}  Nd4 {[%clk 0:02:26]} 19. Kh1 {[%clk 0:01:56]}  Qc8 {[%clk 0:02:00]} 20. Bxd7 {[%clk 0:01:55]}  Qxd7 {[%clk 0:02:01]} 21. b3 {[%clk 0:01:54]}  d5 {[%clk 0:01:50]} 22. exd5 {[%clk 0:01:51]}  Nxd5 {[%clk 0:01:50]} 23. Ra2 {[%clk 0:01:41]}  Qf5 {[%clk 0:01:30]} 24. Ng4 {[%clk 0:01:29]}  h5 {[%clk 0:01:27]} 25. Nge3 {[%clk 0:01:23]}  Qe6 {[%clk 0:01:26]} 26. Nxd5 {[%clk 0:01:19]}  Qxd5 {[%clk 0:01:27]} 27. f3 {[%clk 0:01:14]}  Nf5 {[%clk 0:01:18]} 28. Qe1 {[%clk 0:01:11]}  h4 {[%clk 0:01:09]} 29. Ne3 {[%clk 0:00:59]}  Qd8 {[%clk 0:00:53]} 30. Nxf5 {[%clk 0:00:54]}  gxf5 {[%clk 0:00:54]} 31. Bxb4 {[%clk 0:00:54]}  Rg8 {[%clk 0:00:50]} 32. Bc3 {[%clk 0:00:52]}  Qg5 {[%clk 0:00:48]} 33. Rg1 {[%clk 0:00:47]}  Rbe8 {[%clk 0:00:45]} 34. Bd2 {[%clk 0:00:43]}  Qh5 {[%clk 0:00:43]} 35. Qf2 {[%clk 0:00:42]}  Bf6 {[%clk 0:00:41]} 36. Ra4 {[%clk 0:00:39]}  Rg3 {[%clk 0:00:40]} 37. Rc4 {[%clk 0:00:35]}  Re7 {[%clk 0:00:26]} 38. Be1 {[%clk 0:00:34]}  f4 {[%clk 0:00:24]} 39. Qe2 {[%clk 0:00:26]}  Rg6 {[%clk 0:00:20]} 40. Rc6 {[%clk 0:00:20]}  Kg7 {[%clk 0:00:14]} 41. Qe4 {[%clk 0:00:19]}  Bg5 {[%clk 0:00:08]} 42. Rxg6+ {[%clk 0:00:18]}  Qxg6 {[%clk 0:00:09]} 43. Qxg6+ {[%clk 0:00:18]}  Kxg6 {[%clk 0:00:10]} 44. Bc3 {[%clk 0:00:18]}  f5 {[%clk 0:00:09]} 45. Re1 {[%clk 0:00:17]}  Bf6 {[%clk 0:00:10]} 46. Kg1 {[%clk 0:00:17]}  Re6 {[%clk 0:00:09]} 47. Kf2 {[%clk 0:00:17]}  Rc6 {[%clk 0:00:08]} 48. Bxe5 {[%clk 0:00:17]}  Rxc2+ {[%clk 0:00:08]} 49. Kf1 {[%clk 0:00:17]}  Rd2 {[%clk 0:00:03]} 50. Bxf6 {[%clk 0:00:15]}  Kxf6 {[%clk 0:00:04]} 51. Rc1 {[%clk 0:00:15]}  Rxd3 {[%clk 0:00:04]} 52. Rc6+ {[%clk 0:00:15]}  Kg5 {[%clk 0:00:04]} 53. Rxa6 {[%clk 0:00:15]}  Rxb3 {[%clk 0:00:05]} 54. Ra7 {[%clk 0:00:15]}  Ra3 {[%clk 0:00:05]} 55. Rxc7 {[%clk 0:00:15]}  Rxa5 {[%clk 0:00:05]} 56. Rg7+ {[%clk 0:00:14]}  Kf6 {[%clk 0:00:05]} 57. Rg8 {[%clk 0:00:15]}  Ke5 {[%clk 0:00:05]} 58. Kg1 {[%clk 0:00:14]}  Kd4 {[%clk 0:00:03]} 59. Kh2 {[%clk 0:00:15]}  Ke3 {[%clk 0:00:04]} 60. Rh8 {[%clk 0:00:16]}  Kf2 {[%clk 0:00:02]} 61. Rxh4 {[%clk 0:00:15]}  Ra4 {[%clk 0:00:03]} 62. Rh5 {[%clk 0:00:15]}  Kf1 {[%clk 0:00:03]} 63. Rxf5 {[%clk 0:00:15]}  Ra2 {[%clk 0:00:03]} 64. Rg5 {[%clk 0:00:15]}  Kf2 {[%clk 0:00:04]} 65. h4 {[%clk 0:00:16]}  Ra6 {[%clk 0:00:03]} 66. h5 {[%clk 0:00:15]}  Rh6 {[%clk 0:00:04]} 67. Kh3 {[%clk 0:00:15]}  Ke3 {[%clk 0:00:04]} 68. Kh4 {[%clk 0:00:15]}  Kd4 {[%clk 0:00:05]} 69. Kg4 {[%clk 0:00:16]}  Ke3 {[%clk 0:00:06]} 70. Rg6 {[%clk 0:00:16]}  Rh7 {[%clk 0:00:03]} 71. h6 {[%clk 0:00:16]} 1-0

[Event "November 21 Early 2023"]
[Site "https://www.chess.com"]
[Date "2023.11.21"]
[Round "5"]
[White "Rian, Kapriaga"]
[Black "BM223344"]
[Result "0-1"]
[Board "173"]
[TimeControl "180+1"]
[WhiteFideId "7103263"]
[WhiteElo "2304"]
[BlackElo "2480"]
[WhiteTeam "INA"]
[WhiteClock "0:00:00"]
[BlackClock "0:00:55"]

1. d4 {[%clk 0:02:45]}  Nf6 {[%clk 0:02:58]} 2. e3 {[%clk 0:02:44]}  g6 {[%clk 0:02:58]} 3. Nf3 {[%clk 0:02:41]}  d6 {[%clk 0:02:59]} 4. b3 {[%clk 0:02:40]}  Bg7 {[%clk 0:03:00]} 5. Bb2 {[%clk 0:02:40]}  Nbd7 {[%clk 0:03:00]} 6. Nbd2 {[%clk 0:02:40]}  O-O {[%clk 0:03:01]} 7. Be2 {[%clk 0:02:39]}  c6 {[%clk 0:03:00]} 8. O-O {[%clk 0:02:39]}  Qc7 {[%clk 0:03:01]} 9. a4 {[%clk 0:02:38]}  Rd8 {[%clk 0:03:00]} 10. a5 {[%clk 0:02:38]}  e5 {[%clk 0:02:55]} 11. c4 {[%clk 0:02:35]}  exd4 {[%clk 0:02:50]} 12. Nxd4 {[%clk 0:02:30]}  d5 {[%clk 0:02:49]} 13. Qc2 {[%clk 0:02:28]}  Qb8 {[%clk 0:02:44]} 14. Rfd1 {[%clk 0:02:26]}  Nf8 {[%clk 0:02:36]} 15. Bf3 {[%clk 0:02:23]}  c5 {[%clk 0:02:34]} 16. Nb5 {[%clk 0:02:19]}  Bf5 {[%clk 0:02:33]} 17. Qc1 {[%clk 0:02:16]}  a6 {[%clk 0:02:30]} 18. Nc3 {[%clk 0:02:14]}  d4 {[%clk 0:02:26]} 19. exd4 {[%clk 0:02:14]}  cxd4 {[%clk 0:02:26]} 20. Na4 {[%clk 0:02:11]}  Qc7 {[%clk 0:02:18]} 21. Nb6 {[%clk 0:02:09]}  Rab8 {[%clk 0:02:18]} 22. h3 {[%clk 0:02:00]}  h5 {[%clk 0:02:15]} 23. Nf1 {[%clk 0:01:58]}  Be4 {[%clk 0:02:00]} 24. Bxd4 {[%clk 0:01:40]}  Bxf3 {[%clk 0:01:57]} 25. gxf3 {[%clk 0:01:40]}  Rxd4 {[%clk 0:01:38]} 26. Rxd4 {[%clk 0:01:39]}  N6h7 {[%clk 0:01:38]} 27. Rd3 {[%clk 0:01:32]}  Bxa1 {[%clk 0:01:37]} 28. Qxa1 {[%clk 0:01:32]}  Ng5 {[%clk 0:01:37]} 29. Kg2 {[%clk 0:01:25]}  Nfe6 {[%clk 0:01:34]} 30. Nd5 {[%clk 0:01:21]}  Nf4+ {[%clk 0:01:33]} 31. Nxf4 {[%clk 0:01:17]}  Qxf4 {[%clk 0:01:33]} 32. Qd4 {[%clk 0:01:12]}  Ne6 {[%clk 0:01:28]} 33. Qd6 {[%clk 0:01:04]}  Rd8 {[%clk 0:01:25]} 34. Qxd8+ {[%clk 0:01:00]}  Nxd8 {[%clk 0:01:25]} 35. Rxd8+ {[%clk 0:01:00]}  Kg7 {[%clk 0:01:25]} 36. Rd5 {[%clk 0:00:54]}  Qc1 {[%clk 0:01:19]} 37. Rd7 {[%clk 0:00:43]}  Qg5+ {[%clk 0:01:11]} 38. Kh2 {[%clk 0:00:40]}  Qf5 {[%clk 0:01:10]} 39. Rd5 {[%clk 0:00:13]}  Qxf3 {[%clk 0:01:09]} 40. Kg1 {[%clk 0:00:14]}  Qxb3 {[%clk 0:01:09]} 41. Ne3 {[%clk 0:00:12]}  Qb1+ {[%clk 0:01:03]} 42. Kg2 {[%clk 0:00:09]}  Qe4+ {[%clk 0:01:03]} 43. Kg1 {[%clk 0:00:09]}  f5 {[%clk 0:01:03]} 44. Rd6 {[%clk 0:00:07]}  f4 {[%clk 0:01:03]} 45. Nd5 {[%clk 0:00:05]}  Qxc4 {[%clk 0:00:58]} 46. Rd7+ {[%clk 0:00:04]}  Kh6 {[%clk 0:00:57]} 47. Ne7 {[%clk 0:00:00]}  f3 {[%clk 0:00:55]} 0-1

[Event "November 21 Early 2023"]
[Site "https://www.chess.com"]
[Date "2023.11.21"]
[Round "5"]
[White "Reprintsev, Alexander"]
[Black "AndresDelgado77"]
[Result "0-1"]
[Board "175"]
[TimeControl "180+1"]
[WhiteFideId "14100541"]
[WhiteElo "2229"]
[BlackElo "2297"]
[WhiteTeam "UKR"]
[WhiteClock "0:00:04"]
[BlackClock "0:00:19"]

1. e4 {[%clk 0:02:45]}  e6 {[%clk 0:02:47]} 2. d4 {[%clk 0:02:44]}  d5 {[%clk 0:02:47]} 3. Nc3 {[%clk 0:02:44]}  Nf6 {[%clk 0:02:47]} 4. Bg5 {[%clk 0:02:43]}  Bb4 {[%clk 0:02:46]} 5. e5 {[%clk 0:02:41]}  h6 {[%clk 0:02:47]} 6. exf6 {[%clk 0:02:41]}  hxg5 {[%clk 0:02:45]} 7. fxg7 {[%clk 0:02:41]}  Rg8 {[%clk 0:02:45]} 8. a3 {[%clk 0:02:41]}  Bxc3+ {[%clk 0:02:45]} 9. bxc3 {[%clk 0:02:41]}  Qf6 {[%clk 0:02:45]} 10. h4 {[%clk 0:02:38]}  gxh4 {[%clk 0:02:42]} 11. Qh5 {[%clk 0:02:34]}  c5 {[%clk 0:02:36]} 12. Nf3 {[%clk 0:02:32]}  Bd7 {[%clk 0:02:31]} 13. Qxh4 {[%clk 0:02:28]}  Qxg7 {[%clk 0:02:27]} 14. Rb1 {[%clk 0:02:16]}  b6 {[%clk 0:02:17]} 15. Ne5 {[%clk 0:01:32]}  Nc6 {[%clk 0:02:15]} 16. Nxd7 {[%clk 0:01:26]}  Kxd7 {[%clk 0:02:14]} 17. Bb5 {[%clk 0:01:08]}  a6 {[%clk 0:02:06]} 18. Bxc6+ {[%clk 0:01:07]}  Kxc6 {[%clk 0:02:06]} 19. Rg1 {[%clk 0:00:26]}  Qg5 {[%clk 0:01:28]} 20. Qxg5 {[%clk 0:00:20]}  Rxg5 {[%clk 0:01:27]} 21. Kd2 {[%clk 0:00:17]}  Rag8 {[%clk 0:01:23]} 22. g3 {[%clk 0:00:16]}  Rf5 {[%clk 0:01:24]} 23. f4 {[%clk 0:00:13]}  Rh5 {[%clk 0:01:20]} 24. Rg2 {[%clk 0:00:12]}  Rg4 {[%clk 0:01:15]} 25. Rf1 {[%clk 0:00:11]}  f5 {[%clk 0:01:10]} 26. Ke3 {[%clk 0:00:10]}  Rh8 {[%clk 0:01:03]} 27. Kf3 {[%clk 0:00:10]}  Kb5 {[%clk 0:00:57]} 28. Re1 {[%clk 0:00:09]}  Rh6 {[%clk 0:00:57]} 29. Re3 {[%clk 0:00:07]}  Kc4 {[%clk 0:00:53]} 30. Kf2 {[%clk 0:00:04]}  cxd4 {[%clk 0:00:48]} 31. cxd4 {[%clk 0:00:04]}  Kxd4 {[%clk 0:00:49]} 32. a4 {[%clk 0:00:03]}  Rh3 {[%clk 0:00:43]} 33. Rxe6 {[%clk 0:00:02]}  b5 {[%clk 0:00:38]} 34. axb5 {[%clk 0:00:02]}  axb5 {[%clk 0:00:38]} 35. Re5 {[%clk 0:00:03]}  Rh5 {[%clk 0:00:36]} 36. Kf3 {[%clk 0:00:04]}  Rg8 {[%clk 0:00:34]} 37. Rd2+ {[%clk 0:00:04]}  Kc3 {[%clk 0:00:32]} 38. Rdxd5 {[%clk 0:00:04]}  Rh3 {[%clk 0:00:28]} 39. Rxf5 {[%clk 0:00:03]}  Rgxg3+ {[%clk 0:00:20]} 40. Ke4 {[%clk 0:00:04]}  Re3# {[%clk 0:00:19]} 0-1